fUST/lending_fUST_20260108
["ID","MTS","AMOUNT","RATE_DAILY","PERIOD"]
[400731395,1767802240868,-559.0,0.00026705,2]
[400731396,1767802240877,-559.0,0.00026736,2]
[400731397,1767802240886,-559.0,0.00026781,2]
[400731398,1767802240896,-559.0,0.00026816,2]
[400731399,1767802240905,-550.0,0.00026849,2]
[400731400,1767802240915,-17445.2791189,0.0002689,2]
[400731401,1767802240925,-559.0,0.00026963,2]
[400731403,1767802240934,-559.0,0.00026994,2]
[400731405,1767802240943,-256.0,0.00027,7]
[400731407,1767802240953,-559.0,0.00027,2]
[400731409,1767802240962,-559.0,0.00027002,2]
[400731411,1767802240974,-574.12855637,0.00027055,2]
[400731413,1767802240983,-2773.56790519,0.00027055,2]
[400731415,1767802240992,-16542.72179331,0.00027055,2]
[400731423,1767802241051,-882.2314,0.000249,2]
[400731425,1767802241061,-882.2286,0.000249,7]
[400731427,1767802241070,-1213.61579324,0.00027055,2]
[400732097,1767802248210,-7001.06,0.00024402,10]
[400732099,1767802248226,-1407.28363026,0.0002596,2]
[400732101,1767802248236,-230.24,0.0002666,2]
[400732103,1767802248245,-1407.28363023,0.00026892,2]
[400732104,1767802248255,-8889.86128107,0.00027055,2]
[400732105,1767802248265,-561.0,0.00027115,2]
[400732106,1767802248275,-1000.0,0.00027123,7]
[400732107,1767802248284,-559.0,0.00027203,2]
[400732108,1767802248295,-559.0,0.00027208,2]
[400732109,1767802248304,-339.0,0.00027211,2]
[400732110,1767802248313,-500.0,0.0002722,7]
[400732111,1767802248323,-1049.66,0.000273,14]
[400732112,1767802248332,-500.0,0.00027328,7]
[400732113,1767802248341,-181.81450398,0.00027369,14]
[400732114,1767802248351,-34890.5582379,0.00027377,2]
[400732115,1767802248360,-347.0,0.00027379,3]
[400732116,1767802248370,-347.0,0.00027379,3]
[400732117,1767802248379,-347.0,0.00027379,3]
[400732118,1767802248389,-200.27131476,0.00027379,3]
[400732119,1767802248410,-166.0,0.00027379,3]
[400732120,1767802248420,-347.0,0.00027379,3]
[400732121,1767802248430,-166.0,0.00027379,3]
[400732122,1767802248440,-347.0,0.00027379,3]
[400732123,1767802248451,-166.0,0.00027379,3]
[400732124,1767802248461,-163.0,0.00027379,3]
[400732125,1767802248471,-151.0,0.00027379,3]
[400732126,1767802248485,-347.0,0.00027379,3]
[400732127,1767802248495,-204.25814769,0.00027379,3]
[400732128,1767802248505,-166.0,0.00027379,3]
[400732129,1767802248515,-151.0,0.00027379,3]
[400732130,1767802248526,-347.0,0.00027379,3]
[400732131,1767802248536,-166.0,0.00027379,3]
[400732132,1767802248546,-151.0,0.00027379,3]
[400732133,1767802248558,-347.0,0.00027379,3]
[400732134,1767802248568,-336.0,0.00027379,3]
[400732135,1767802248579,-166.0,0.00027379,3]
[400732136,1767802248590,-151.0,0.00027379,3]
[400732137,1767802248600,-347.0,0.00027379,3]
[400732138,1767802248610,-336.0,0.00027379,3]
[400732139,1767802248620,-347.0,0.00027379,3]
[400732140,1767802248631,-151.0,0.00027379,3]
[400732141,1767802248642,-336.0,0.00027379,3]
[400732142,1767802248652,-347.0,0.00027379,3]
[400732143,1767802248661,-336.0,0.00027379,3]
[400732144,1767802248671,-347.0,0.00027379,3]
[400732145,1767802248681,-347.0,0.00027379,3]
[400732146,1767802248691,-336.0,0.00027379,3]
[400732147,1767802248701,-151.0,0.00027379,3]
[400732148,1767802248712,-347.0,0.00027379,3]
[400732149,1767802248722,-336.0,0.00027379,3]
[400732150,1767802248731,-151.0,0.00027379,3]
[400732151,1767802248741,-347.0,0.00027379,3]
[400732152,1767802248751,-336.0,0.00027379,3]
[400732153,1767802248761,-151.0,0.00027379,3]
[400732154,1767802248771,-347.0,0.00027379,3]
[400732155,1767802248781,-336.0,0.00027379,3]
[400732156,1767802248791,-151.0,0.00027379,3]
[400732157,1767802248801,-151.0,0.00027379,3]
[400732158,1767802248812,-347.0,0.00027379,3]
[400732159,1767802248822,-151.0,0.00027379,3]
[400732160,1767802248832,-336.0,0.00027379,3]
[400732161,1767802248842,-151.0,0.00027379,3]
[400732162,1767802248852,-347.0,0.00027379,3]
[400732163,1767802248863,-336.0,0.00027379,3]
[400732164,1767802248872,-347.0,0.00027379,3]
[400732165,1767802248881,-151.0,0.00027379,3]
[400732166,1767802248891,-151.0,0.00027379,3]
[400732167,1767802248900,-336.0,0.00027379,3]
[400732168,1767802248911,-151.0,0.00027379,3]
[400732169,1767802248922,-347.0,0.00027379,3]
[400732170,1767802248935,-151.0,0.00027379,3]
[400732171,1767802248946,-336.0,0.00027379,3]
[400732172,1767802248957,-151.0,0.00027379,3]
[400732173,1767802248969,-347.0,0.00027379,3]
[400732174,1767802248981,-151.0,0.00027379,3]
[400732175,1767802248992,-347.0,0.00027379,3]
[400732176,1767802249004,-336.0,0.00027379,3]
[400732177,1767802249015,-151.0,0.00027379,3]
[400732178,1767802249027,-336.0,0.00027379,3]
[400732179,1767802249037,-347.0,0.00027379,3]
[400732180,1767802249046,-151.0,0.00027379,3]
[400732181,1767802249056,-336.0,0.00027379,3]
[400732182,1767802249066,-347.0,0.00027379,3]
[400732183,1767802249075,-151.0,0.00027379,3]
[400732184,1767802249085,-336.0,0.00027379,3]
[400732185,1767802249095,-347.0,0.00027379,3]
[400732186,1767802249104,-151.0,0.00027379,3]
[400732187,1767802249113,-336.0,0.00027379,3]
[400732188,1767802249123,-347.0,0.00027379,3]
[400732189,1767802249133,-151.0,0.00027379,3]
[400732190,1767802249143,-336.0,0.00027379,3]
[400732191,1767802249152,-347.0,0.00027379,3]
[400732192,1767802249161,-151.0,0.00027379,3]
[400732193,1767802249171,-347.0,0.00027379,3]
[400732194,1767802249181,-151.0,0.00027379,3]
[400732195,1767802249190,-347.0,0.00027379,3]
[400732196,1767802249200,-151.0,0.00027379,3]
[400732197,1767802249209,-336.0,0.00027379,3]
[400732198,1767802249219,-347.0,0.00027379,3]
[400732199,1767802249228,-151.0,0.00027379,3]
[400732200,1767802249238,-336.0,0.00027379,3]
[400732201,1767802249248,-347.0,0.00027379,3]
[400732202,1767802249257,-151.0,0.00027379,3]
[400732203,1767802249268,-347.0,0.00027379,3]
[400732204,1767802249281,-336.0,0.00027379,3]
[400732205,1767802249292,-151.0,0.00027379,3]
[400732206,1767802249302,-347.0,0.00027379,3]
[400732207,1767802249312,-336.0,0.00027379,3]
[400732208,1767802249321,-151.0,0.00027379,3]
[400732209,1767802249332,-347.0,0.00027379,3]
[400732210,1767802249341,-336.0,0.00027379,3]
[400732211,1767802249350,-151.0,0.00027379,3]
[400732212,1767802249359,-347.0,0.00027379,3]
[400732213,1767802249368,-336.0,0.00027379,3]
[400732214,1767802249378,-151.0,0.00027379,3]
[400732215,1767802249388,-347.0,0.00027379,3]
[400732216,1767802249398,-336.0,0.00027379,3]
[400732217,1767802249408,-151.0,0.00027379,3]
[400732218,1767802249418,-336.0,0.00027379,3]
[400732219,1767802249427,-151.0,0.00027379,3]
[400732220,1767802249437,-347.0,0.00027379,3]
[400732221,1767802249447,-336.0,0.00027379,3]
[400732222,1767802249456,-347.0,0.00027379,3]
[400732223,1767802249466,-151.0,0.00027379,3]
[400732224,1767802249478,-336.0,0.00027379,3]
[400732225,1767802249489,-347.0,0.00027379,3]
[400732226,1767802249498,-153.05483042,0.00027379,3]
[400732227,1767802249509,-376.65305407,0.00027379,3]
[400732228,1767802249519,-429.4634567,0.00027379,3]
[400732229,1767802249529,-2424.11771256,0.00027397,2]
[400732230,1767802249538,-500.0,0.00027397,2]
[400732231,1767802249549,-421.02480079,0.00027397,2]
[400732232,1767802249559,-296.57482557,0.00027397,2]
[400732233,1767802249568,-257.75144665,0.00027397,2]
[400732234,1767802249578,-500.0,0.00027397,2]
[400732235,1767802249587,-459.71283558,0.00027397,2]
[400732236,1767802249597,-287.99941463,0.00027397,2]
[400732237,1767802249607,-1000.0,0.00027397,2]
[400732238,1767802249616,-271.44586454,0.00027397,2]
[400732239,1767802249626,-500.0,0.00027397,2]
[400732240,1767802249636,-318.72988081,0.00027397,2]
[400732241,1767802249645,-248.88132045,0.00027397,2]
[400732242,1767802249655,-509.29429867,0.00027397,2]
[400732243,1767802249666,-500.0,0.00027397,2]
[400732244,1767802249676,-566.66989012,0.00027397,2]
[400732245,1767802249686,-500.0,0.00027397,2]
[400732246,1767802249695,-164.8466183,0.00027397,2]
[400732247,1767802249706,-565.76829321,0.00027397,2]
[400732248,1767802249716,-500.0,0.00027397,2]
[400732249,1767802249726,-500.0,0.00027397,2]
[400732250,1767802249736,-195.03199849,0.00027397,2]
[400732251,1767802249747,-480.41975781,0.00027397,2]
[400732252,1767802249756,-500.0,0.00027397,2]
[400732253,1767802249766,-399.37825281,0.00027397,2]
[400732254,1767802249776,-248.43549286,0.00027397,2]
[400732255,1767802249785,-200.0,0.00027397,2]
[400732256,1767802249796,-185.72944567,0.00027397,2]
[400732257,1767802249806,-500.0,0.00027397,2]
[400732258,1767802249816,-471.39829619,0.00027397,2]
[400732259,1767802249825,-500.0,0.00027397,2]
[400732260,1767802249835,-593.0958547,0.00027397,2]
[400732261,1767802249844,-500.0,0.00027397,2]
[400732262,1767802249854,-500.0,0.00027397,2]
[400732263,1767802249864,-208.00138522,0.00027397,2]
[400732264,1767802249874,-500.0,0.00027397,2]
[400732265,1767802249884,-500.0,0.00027397,2]
[400732266,1767802249893,-500.0,0.00027397,2]
[400732267,1767802249903,-500.0,0.00027397,2]
[400732268,1767802249913,-269.29132722,0.00027397,2]
[400732269,1767802249923,-505.81393525,0.00027397,2]
[400732270,1767802249936,-500.0,0.00027397,2]
[400732271,1767802249948,-315.73155468,0.00027397,2]
[400732272,1767802249958,-523.62028016,0.00027397,2]
[400732273,1767802249967,-500.0,0.00027397,2]
[400732274,1767802249977,-549.11,0.00027397,2]
[400732275,1767802249986,-500.0,0.00027397,2]
[400732276,1767802249995,-500.0,0.00027397,2]
[400732277,1767802250005,-186.32079974,0.00027397,2]
[400732278,1767802250015,-500.0,0.00027397,2]
[400732279,1767802250024,-500.0,0.00027397,2]
[400732280,1767802250034,-500.0,0.00027397,2]
[400732281,1767802250043,-500.0,0.00027397,2]
[400732282,1767802250053,-500.0,0.00027397,2]
[400732283,1767802250063,-500.0,0.00027397,2]
[400732284,1767802250072,-500.0,0.00027397,2]
[400732285,1767802250082,-500.0,0.00027397,2]
[400732286,1767802250091,-393.32959088,0.00027397,2]
[400732287,1767802250100,-500.0,0.00027397,2]
[400732288,1767802250111,-198.57134619,0.00027397,2]
[400732289,1767802250120,-500.0,0.00027397,2]
[400732290,1767802250130,-301.15409314,0.00027397,2]
[400732291,1767802250139,-302.57630642,0.00027397,2]
[400732292,1767802250149,-487.15250721,0.00027397,2]
[400732293,1767802250159,-500.0,0.00027397,2]
[400732294,1767802250168,-500.0,0.00027397,2]
[400732295,1767802250177,-353.312555,0.00027397,2]
[400732296,1767802250187,-500.0,0.00027397,2]
[400732297,1767802250196,-500.0,0.00027397,2]
[400732298,1767802250205,-500.0,0.00027397,2]
[400732299,1767802250214,-500.0,0.00027397,2]
[400732300,1767802250225,-221.6668596,0.00027397,2]
[400732301,1767802250234,-500.0,0.00027397,2]
[400732302,1767802250243,-500.0,0.00027397,2]
[400732303,1767802250253,-500.0,0.00027397,2]
[400732304,1767802250264,-500.0,0.00027397,2]
[400732305,1767802250276,-500.0,0.00027397,2]
[400732306,1767802250287,-397.00088279,0.00027397,2]
[400732307,1767802250296,-292.25444608,0.00027397,2]
[400732308,1767802250306,-500.0,0.00027397,2]
[400732309,1767802250316,-500.0,0.00027397,2]
[400732310,1767802250325,-500.0,0.00027397,2]
[400732311,1767802250335,-512.01473641,0.00027397,2]
[400732312,1767802250344,-500.0,0.00027397,2]
[400732313,1767802250353,-500.0,0.00027397,2]
[400732314,1767802250362,-500.0,0.00027397,2]
[400732315,1767802250372,-500.0,0.00027397,2]
[400732316,1767802250381,-299.72847369,0.00027397,2]
[400732317,1767802250391,-500.0,0.00027397,2]
[400732319,1767802250400,-500.0,0.00027397,2]
[400732321,1767802250409,-500.0,0.00027397,2]
[400732322,1767802250419,-500.0,0.00027397,2]
[400732323,1767802250429,-500.0,0.00027397,2]
[400732324,1767802250441,-500.0,0.00027397,2]
[400732325,1767802250451,-500.0,0.00027397,2]
[400732326,1767802250461,-500.0,0.00027397,2]
[400732327,1767802250470,-617.61281973,0.00027397,2]
[400732328,1767802250482,-500.0,0.00027397,2]
[400732329,1767802250492,-500.0,0.00027397,2]
[400732330,1767802250502,-500.0,0.00027397,2]
[400732331,1767802250511,-500.0,0.00027397,2]
[400732332,1767802250521,-500.0,0.00027397,2]
[400732333,1767802250530,-500.0,0.00027397,2]
[400732334,1767802250541,-500.0,0.00027397,2]
[400732335,1767802250550,-500.0,0.00027397,2]
[400732337,1767802250562,-575.65250457,0.00027397,2]
[400732339,1767802250571,-500.0,0.00027397,2]
[400732341,1767802250581,-524.2646963,0.00027397,2]
[400732343,1767802250590,-192.34753307,0.00027397,2]
[400732345,1767802250599,-500.0,0.00027397,2]
[400732346,1767802250608,-500.0,0.00027397,2]
[400732347,1767802250618,-500.0,0.00027397,2]
[400732348,1767802250628,-500.0,0.00027397,2]
[400732349,1767802250638,-464.4820247,0.00027397,2]
[400732350,1767802250647,-615.97109586,0.00027397,2]
[400732355,1767802250698,-11.01432213,0.00027397,2]
[400732356,1767802250708,-500.0,0.00027397,2]
[400732358,1767802250717,-500.0,0.00027397,2]
[400732359,1767802250728,-155.73353519,0.00027397,2]
[400732360,1767802250737,-500.0,0.00027397,2]
[400732361,1767802250746,-500.0,0.00027397,2]
[400732362,1767802250756,-500.0,0.00027397,2]
[400732363,1767802250766,-500.0,0.00027397,2]
[400732364,1767802250775,-500.0,0.00027397,2]
[400732365,1767802250784,-500.0,0.00027397,2]
[400732366,1767802250795,-500.0,0.00027397,2]
[400732367,1767802250805,-500.0,0.00027397,2]
[400732368,1767802250816,-500.0,0.00027397,2]
[400732369,1767802250827,-345.47987431,0.00027397,2]
[400732370,1767802250836,-500.0,0.00027397,2]
[400732371,1767802250845,-500.0,0.00027397,2]
[400732372,1767802250854,-500.0,0.00027397,2]
[400732373,1767802250863,-500.0,0.00027397,2]
[400732374,1767802250873,-454.31130576,0.00027397,2]
[400732375,1767802250882,-500.0,0.00027397,2]
[400732376,1767802250891,-500.0,0.00027397,2]
[400732377,1767802250901,-332.54570766,0.00027397,2]
[400732378,1767802250910,-500.0,0.00027397,2]
[400732379,1767802250919,-500.0,0.00027397,2]
[400732380,1767802250929,-633.2804934,0.00027397,2]
[400732381,1767802250938,-500.0,0.00027397,2]
[400732382,1767802250947,-2849.86,0.00027397,2]
[400732383,1767802250957,-200.69574063,0.00027397,2]
[400732385,1767802250966,-500.0,0.00027397,2]
[400732386,1767802250975,-449.28664847,0.00027397,2]
[400732387,1767802250986,-500.0,0.00027397,2]
[400732388,1767802250995,-500.0,0.00027397,2]
[400732389,1767802251004,-500.0,0.00027397,2]
[400732390,1767802251013,-500.0,0.00027397,2]
[400732391,1767802251023,-500.0,0.00027397,2]
[400732392,1767802251032,-500.0,0.00027397,2]
[400732393,1767802251042,-500.0,0.00027397,2]
[400732394,1767802251051,-500.0,0.00027397,2]
[400732395,1767802251060,-500.0,0.00027397,2]
[400732396,1767802251070,-500.0,0.00027397,2]
[400732397,1767802251079,-500.0,0.00027397,2]
[400732398,1767802251088,-500.0,0.00027397,2]
[400732399,1767802251097,-500.0,0.00027397,2]
[400732400,1767802251107,-500.0,0.00027397,2]
[400732401,1767802251116,-500.0,0.00027397,2]
[400732402,1767802251125,-500.0,0.00027397,2]
[400732403,1767802251134,-500.0,0.00027397,2]
[400732404,1767802251144,-497.79664648,0.00027397,2]
[400732405,1767802251153,-500.0,0.00027397,2]
[400732406,1767802251162,-277.01965279,0.00027397,2]
[400732407,1767802251172,-500.0,0.00027397,2]
[400732408,1767802251181,-414.66991309,0.00027397,2]
[400732409,1767802251190,-492.19266173,0.00027397,2]
[400732410,1767802251199,-599.79697724,0.00027397,2]
[400732411,1767802251208,-512.18746411,0.00027397,2]
[400732412,1767802251217,-500.0,0.00027397,2]
[400732413,1767802251227,-500.0,0.00027397,2]
[400732414,1767802251236,-500.0,0.00027397,2]
[400732415,1767802251245,-630.36,0.00027397,2]
[400732416,1767802251254,-500.0,0.00027397,2]
[400732417,1767802251264,-536.59529358,0.00027397,2]
[400732418,1767802251273,-500.0,0.00027397,2]
[400732419,1767802251282,-500.0,0.00027397,2]
[400732420,1767802251291,-355.05083788,0.00027397,2]
[400732421,1767802251472,-394.41260259,0.00027397,2]
[400732422,1767802251522,-105.58739741,0.00027397,2]
[400732423,1767802251531,-500.0,0.00027397,2]
[400732424,1767802251540,-294.41260259,0.00027397,2]
[400732425,1767802251553,-76.79269178,0.00027397,2]
[400732426,1767802251563,-500.0,0.00027397,2]
[400732427,1767802251572,-275.89701196,0.00027397,2]
[400732428,1767802251582,-500.0,0.00027397,2]
[400732429,1767802251593,-500.0,0.00027397,2]
[400732430,1767802251602,-235.17052931,0.00027397,2]
[400732431,1767802251614,-264.82947069,0.00027397,2]
[400732432,1767802251623,-500.0,0.00027397,2]
[400732433,1767802251634,-144.57784815,0.00027397,2]
[400732434,1767802251702,-25.80937672,0.00027397,2]
[400732435,1767802251726,-329.61277513,0.00027397,2]
[400732436,1767802251736,-500.0,0.00027397,2]
[400732437,1767802251745,-500.0,0.00027397,2]
[400732438,1767802251755,-500.0,0.00027397,2]
[400732439,1767802251765,-500.0,0.00027397,2]
[400732440,1767802251775,-500.0,0.00027397,2]
[400732441,1767802251784,-500.0,0.00027397,2]
[400732442,1767802251794,-500.0,0.00027397,2]
[400732443,1767802251803,-160.97172123,0.00027397,2]
[400732444,1767802251813,-500.0,0.00027397,2]
[400732445,1767802251822,-213.43589508,0.00027397,2]
[400732446,1767802251882,-284.56,0.00027,2]
[400732459,1767802279365,500.0,0.0003013,120]
[400732461,1767802292305,239.44,9.45e-05,2]
[400732462,1767802292734,359.17,0.00010237,2]
[400732463,1767802293192,478.89,0.00011025,2]
[400732464,1767802293622,598.61,0.00011812,2]
[400732481,1767802361260,243.49,0.0001,2]
[400732485,1767802370712,200.72,9.27e-05,2]
[400732486,1767802371123,301.08,0.00010042,2]
[400732487,1767802371618,401.44,0.00010815,2]
[400732488,1767802372101,501.8,0.00011587,2]
[400732489,1767802404998,264.4,0.00030136,120]
[400732520,1767802425166,264.4,0.00030136,120]
[400732522,1767802448041,170.01,9.113e-05,2]
[400732523,1767802448459,255.01,9.872e-05,2]
[400732524,1767802448981,340.02,0.00010632,2]
[400732525,1767802449372,425.02,0.00011391,2]
[400732526,1767802452069,264.4,0.00030136,120]
[400732528,1767802468071,-510.02,0.00012151,2]
[400732530,1767802523555,197.29,9.94e-05,2]
[400732531,1767802523948,263.06,0.00010705,2]
[400732532,1767802524377,328.82,0.00011469,2]
[400732533,1767802549172,176.0,8.3e-07,2]
[400732534,1767802550217,176.0,8.3e-07,2]
[400732535,1767802551244,176.0,8.3e-07,2]
[400732536,1767802597279,167.16,0.00010094,2]
[400732537,1767802597689,222.88,0.00010871,2]
[400732538,1767802598104,278.6,0.00011647,2]
[400732541,1767802672008,197.95,0.00010665,2]
[400732542,1767802672425,247.43,0.00011427,2]
[400732543,1767802674559,-296.92,0.00012189,2]
[400732545,1767802734970,174.5163888,0.00025244,120]
[400732546,1767802743727,168.8,0.00010441,2]
[400732547,1767802744136,211.0,0.00011186,2]
[400732548,1767802744547,253.19,0.00011932,2]
[400732552,1767802816267,155.02,0.00010459,2]
[400732553,1767802816796,193.78,0.00011206,2]
[400732554,1767802817312,232.53,0.00011953,2]
[400732561,1767802887690,156.78,0.00011336,2]
[400732562,1767802888125,188.14,0.00012092,2]
[400732566,1767802958639,161.8,0.0001181,2]
[400732644,1767803174574,163.06,0.00011915,2]
[400732677,1767803242098,-599.0,0.00012678,2]
[400732678,1767803242120,-500.0,0.00012981,2]
[400732679,1767803242142,-478.39021182,0.00013118,2]
[400732682,1767803244347,150.61,0.00012056,2]
[400732718,1767803351086,-162.29,0.00012708,2]
[400732719,1767803351111,-96.4573812,0.00013118,2]
[400732726,1767803361144,-25.15240698,0.00013118,2]
[400732727,1767803361166,-2667.88957777,0.00013158,2]
[400732728,1767803361189,-300.0,0.0001325,2]
[400732729,1767803361213,-500.0,0.00013251,2]
[400732730,1767803361235,-442.88818333,0.00013251,2]
[400732793,1767803431972,-300.0,0.0001325,2]
[400732794,1767803431982,-300.0,0.0001325,2]
[400732795,1767803431992,-300.0,0.0001325,2]
[400732796,1767803432001,-100.0,0.0001325,2]
[400732799,1767803432116,-200.0,0.0001325,2]
[400732800,1767803432126,-57.11181667,0.00013251,2]
[400732801,1767803432136,-500.0,0.00013251,2]
[400732802,1767803432145,-500.0,0.00013251,2]
[400732803,1767803432154,-500.0,0.00013251,2]
[400732804,1767803432163,-500.0,0.00013251,2]
[400732805,1767803432172,-500.0,0.00013251,2]
[400732806,1767803432182,-500.0,0.00013251,2]
[400732807,1767803432191,-500.0,0.00013251,2]
[400732808,1767803432201,-500.0,0.00013251,2]
[400732809,1767803432210,-500.0,0.00013251,2]
[400732810,1767803432219,-468.22722687,0.00013251,2]
[400732811,1767803432229,-500.0,0.00013251,2]
[400732812,1767803432238,-500.0,0.00013251,2]
[400732813,1767803432249,-500.0,0.00013251,2]
[400732814,1767803432260,-500.0,0.00013251,2]
[400732815,1767803432270,-500.0,0.00013251,2]
[400732816,1767803432283,-500.0,0.00013251,2]
[400732817,1767803432293,-500.0,0.00013251,2]
[400732818,1767803432303,-500.0,0.00013251,2]
[400732819,1767803432312,-500.0,0.00013251,2]
[400732820,1767803432322,-500.0,0.00013251,2]
[400732821,1767803432332,-500.0,0.00013251,2]
[400732822,1767803432341,-500.0,0.00013251,2]
[400732823,1767803432351,-500.0,0.00013251,2]
[400732824,1767803432360,-500.0,0.00013251,2]
[400732825,1767803432370,-500.0,0.00013251,2]
[400732826,1767803432379,-500.0,0.00013251,2]
[400732827,1767803432390,-500.0,0.00013251,2]
[400732828,1767803432399,-500.0,0.00013251,2]
[400732829,1767803432408,-500.0,0.00013251,2]
[400732830,1767803432419,-500.0,0.00013251,2]
[400732831,1767803432429,-515.86792776,0.00013251,2]
[400732832,1767803432439,-500.0,0.00013251,2]
[400732833,1767803432448,-500.0,0.00013251,2]
[400732834,1767803432458,-500.0,0.00013251,2]
[400732835,1767803432468,-500.0,0.00013251,2]
[400732836,1767803432478,-500.0,0.00013251,2]
[400732837,1767803432488,-500.0,0.00013251,2]
[400732838,1767803432498,-500.0,0.00013251,2]
[400732839,1767803432508,-500.0,0.00013251,2]
[400732840,1767803432518,-500.0,0.00013251,2]
[400732841,1767803432532,-500.0,0.00013251,2]
[400732842,1767803432542,-500.0,0.00013251,2]
[400732843,1767803432552,-500.0,0.00013251,2]
[400732844,1767803432562,-500.0,0.00013251,2]
[400732845,1767803432571,-500.0,0.00013251,2]
[400732846,1767803432581,-500.0,0.00013251,2]
[400732847,1767803432591,-500.0,0.00013251,2]
[400732848,1767803432601,-500.0,0.00013251,2]
[400732849,1767803432611,-500.0,0.00013251,2]
[400732850,1767803432620,-500.0,0.00013251,2]
[400732851,1767803432629,-500.0,0.00013251,2]
[400732852,1767803432639,-500.0,0.00013251,2]
[400732853,1767803432649,-500.0,0.00013251,2]
[400732854,1767803432658,-500.0,0.00013251,2]
[400732855,1767803432667,-500.0,0.00013251,2]
[400732856,1767803432684,-500.0,0.00013251,2]
[400732857,1767803432696,-549.90832848,0.00013251,2]
[400732858,1767803432706,-500.0,0.00013251,2]
[400732859,1767803432715,-500.0,0.00013251,2]
[400732860,1767803432725,-500.0,0.00013251,2]
[400732861,1767803432735,-500.0,0.00013251,2]
[400732862,1767803432744,-500.0,0.00013251,2]
[400732863,1767803432753,-559.92014699,0.00013251,2]
[400732864,1767803432763,-500.0,0.00013251,2]
[400732865,1767803432773,-500.0,0.00013251,2]
[400732866,1767803432785,-500.0,0.00013251,2]
[400732867,1767803432795,-500.0,0.00013251,2]
[400732868,1767803432809,-500.0,0.00013251,2]
[400732869,1767803432818,-500.0,0.00013251,2]
[400732870,1767803432828,-500.0,0.00013251,2]
[400732871,1767803432838,-500.0,0.00013251,2]
[400732872,1767803432850,-500.0,0.00013251,2]
[400732873,1767803432859,-500.0,0.00013251,2]
[400732874,1767803432870,-500.0,0.00013251,2]
[400732875,1767803432881,-500.0,0.00013251,2]
[400732876,1767803432892,-500.0,0.00013251,2]
[400732877,1767803432902,-500.0,0.00013251,2]
[400732878,1767803432913,-500.0,0.00013251,2]
[400732879,1767803432924,-500.0,0.00013251,2]
[400732880,1767803432935,-500.0,0.00013251,2]
[400732881,1767803432945,-500.0,0.00013251,2]
[400732882,1767803432955,-500.0,0.00013251,2]
[400732883,1767803432965,-500.0,0.00013251,2]
[400732884,1767803432975,-500.0,0.00013251,2]
[400732886,1767803432985,-500.0,0.00013251,2]
[400732887,1767803432995,-500.0,0.00013251,2]
[400732888,1767803433005,-500.0,0.00013251,2]
[400732889,1767803433014,-500.0,0.00013251,2]
[400732890,1767803433025,-500.0,0.00013251,2]
[400732891,1767803433034,-500.0,0.00013251,2]
[400732892,1767803433044,-500.0,0.00013251,2]